[Event "Titled Tuesday Blitz April 26 Late 2022"]
[White "Pasti, Aron"]
[Black "Licznerski, Lukasz"]
[WhiteFideId "785857"]
[BlackFideId "1179250"]
[WhiteElo "2133"]
[BlackElo "2422"]
[Result "0-1"]
[Round "08"]
[TimeControl "180+1"]
[Date "2022.04.26"]
[WhiteClock "0:00:01"]
[BlackClock "0:00:02"]

1. e4 {[%clk 0:02:51]}  c6 {[%clk 0:03:00]} 2. d4 {[%clk 0:02:50]}  d5 {[%clk 0:03:01]} 3. Nc3 {[%clk 0:02:50]}  dxe4 {[%clk 0:03:01]} 4. Nxe4 {[%clk 0:02:51]}  Nd7 {[%clk 0:03:01]} 5. Qe2 {[%clk 0:02:50]}  Ndf6 {[%clk 0:03:00]} 6. c3 {[%clk 0:02:49]}  Nxe4 {[%clk 0:02:57]} 7. Qxe4 {[%clk 0:02:50]}  Nf6 {[%clk 0:02:58]} 8. Qc2 {[%clk 0:02:50]}  Qd5 {[%clk 0:02:50]} 9. Nf3 {[%clk 0:02:49]}  Bf5 {[%clk 0:02:50]} 10. Qb3 {[%clk 0:02:46]}  O-O-O {[%clk 0:02:42]} 11. Bc4 {[%clk 0:02:43]}  Qe4+ {[%clk 0:02:42]} 12. Be3 {[%clk 0:02:43]}  Ng4 {[%clk 0:02:30]} 13. O-O {[%clk 0:02:29]}  Nxe3 {[%clk 0:02:27]} 14. fxe3 {[%clk 0:02:24]}  e6 {[%clk 0:02:05]} 15. Rae1 {[%clk 0:02:07]}  Bd6 {[%clk 0:02:03]} 16. g3 {[%clk 0:02:00]}  Qg4 {[%clk 0:01:53]} 17. Qd1 {[%clk 0:01:47]}  Be4 {[%clk 0:01:25]} 18. Bd3 {[%clk 0:01:43]}  Bxd3 {[%clk 0:01:14]} 19. Qxd3 {[%clk 0:01:43]}  h5 {[%clk 0:01:10]} 20. e4 {[%clk 0:01:33]}  e5 {[%clk 0:00:59]} 21. Kh1 {[%clk 0:01:11]}  f6 {[%clk 0:00:54]} 22. d5 {[%clk 0:01:03]}  cxd5 {[%clk 0:00:48]} 23. exd5 {[%clk 0:01:02]}  Rhe8 {[%clk 0:00:41]} 24. Re4 {[%clk 0:01:00]}  Qd7 {[%clk 0:00:32]} 25. Nh4 {[%clk 0:00:59]}  Kb8 {[%clk 0:00:27]} 26. b4 {[%clk 0:00:47]}  Rc8 {[%clk 0:00:26]} 27. a3 {[%clk 0:00:47]}  Red8 {[%clk 0:00:24]} 28. c4 {[%clk 0:00:47]}  Bf8 {[%clk 0:00:20]} 29. Ng6 {[%clk 0:00:42]}  Qe8 {[%clk 0:00:09]} 30. Nxf8 {[%clk 0:00:41]}  Qxf8 {[%clk 0:00:09]} 31. c5 {[%clk 0:00:39]}  Qf7 {[%clk 0:00:05]} 32. d6 {[%clk 0:00:39]}  Qe6 {[%clk 0:00:05]} 33. Qe2 {[%clk 0:00:35]}  g6 {[%clk 0:00:04]} 34. Re3 {[%clk 0:00:34]}  Re8 {[%clk 0:00:04]} 35. a4 {[%clk 0:00:30]}  Rcd8 {[%clk 0:00:04]} 36. a5 {[%clk 0:00:29]}  a6 {[%clk 0:00:03]} 37. b5 {[%clk 0:00:28]}  Qd5+ {[%clk 0:00:03]} 38. Kg1 {[%clk 0:00:27]}  Qxc5 {[%clk 0:00:03]} 39. bxa6 {[%clk 0:00:25]}  Rxd6 {[%clk 0:00:04]} 40. Rb1 {[%clk 0:00:16]}  Rxa6 {[%clk 0:00:03]} 41. Qxa6 {[%clk 0:00:11]}  Qxe3+ {[%clk 0:00:03]} 42. Kf1 {[%clk 0:00:11]}  Qf3+ {[%clk 0:00:03]} 43. Kg1 {[%clk 0:00:11]}  Rd8 {[%clk 0:00:02]} 44. Qb5 {[%clk 0:00:04]}  Qe3+ {[%clk 0:00:02]} 45. Kf1 {[%clk 0:00:03]}  Qf3+ {[%clk 0:00:02]} 46. Kg1 {[%clk 0:00:03]}  Rc8 {[%clk 0:00:02]} 47. a6 {[%clk 0:00:02]}  Qe3+ {[%clk 0:00:02]} 48. Kf1 {[%clk 0:00:01]}  Qf3+ {[%clk 0:00:02]} 49. Kg1 {[%clk 0:00:02]}  Rc2 {[%clk 0:00:02]} 50. Qxb7+ {[%clk 0:00:01]}  Qxb7 {[%clk 0:00:03]} 51. Rxb7+ {[%clk 0:00:01]}  Ka8 {[%clk 0:00:03]} 52. Rg7 {[%clk 0:00:02]}  g5 {[%clk 0:00:03]} 53. Rf7 {[%clk 0:00:02]}  Rc6 {[%clk 0:00:03]} 54. Rh7 {[%clk 0:00:02]}  Rxa6 {[%clk 0:00:03]} 55. Rxh5 {[%clk 0:00:02]}  Kb7 {[%clk 0:00:04]} 56. h4 {[%clk 0:00:02]}  gxh4 {[%clk 0:00:03]} 57. gxh4 {[%clk 0:00:03]}  Kc6 {[%clk 0:00:04]} 58. Rh8 {[%clk 0:00:03]}  Kd5 {[%clk 0:00:04]} 59. h5 {[%clk 0:00:03]}  Ke4 {[%clk 0:00:03]} 60. h6 {[%clk 0:00:03]}  f5 {[%clk 0:00:04]} 61. h7 {[%clk 0:00:03]}  Rh6 {[%clk 0:00:04]} 62. Kg2 {[%clk 0:00:01]}  f4 {[%clk 0:00:03]} 63. Kf2 {[%clk 0:00:02]}  Rh2+ {[%clk 0:00:03]} 64. Kg1 {[%clk 0:00:02]}  Rh5 {[%clk 0:00:03]} 65. Kf2 {[%clk 0:00:02]}  Rh6 {[%clk 0:00:04]} 66. Ke2 {[%clk 0:00:02]}  Rh2+ {[%clk 0:00:04]} 67. Kf1 {[%clk 0:00:02]}  Kf3 {[%clk 0:00:04]} 68. Kg1 {[%clk 0:00:02]}  Rh6 {[%clk 0:00:03]} 69. Re8 {[%clk 0:00:02]}  Rxh7 {[%clk 0:00:03]} 70. Rxe5 {[%clk 0:00:02]}  Ra7 {[%clk 0:00:02]} 71. Re8 {[%clk 0:00:01]}  Ra1+ {[%clk 0:00:02]} 72. Kh2 {[%clk 0:00:01]}  Kf2 {[%clk 0:00:02]} 0-1


[Site "https://www.chess.com"]

[Event "Titled Tuesday Blitz April 26 Late 2022"]
[White "Prohorov, Olexandr"]
[Black "Karttunen, Mika"]
[WhiteFideId "14105578"]
[BlackFideId "502081"]
[WhiteElo "1993"]
[BlackElo "2343"]
[Result "1-0"]
[Round "08"]
[TimeControl "180+1"]
[Date "2022.04.26"]
[WhiteClock "0:00:19"]
[BlackClock "0:00:10"]

1. e4 {[%clk 0:03:00]}  e6 {[%clk 0:03:00]} 2. Nf3 {[%clk 0:02:54]}  d5 {[%clk 0:02:57]} 3. e5 {[%clk 0:02:54]}  Bd7 {[%clk 0:02:48]} 4. d4 {[%clk 0:02:41]}  c5 {[%clk 0:02:48]} 5. dxc5 {[%clk 0:02:36]}  Bxc5 {[%clk 0:02:46]} 6. Bd3 {[%clk 0:02:37]}  h6 {[%clk 0:02:45]} 7. O-O {[%clk 0:02:36]}  Nc6 {[%clk 0:02:45]} 8. Qe2 {[%clk 0:02:36]}  Nge7 {[%clk 0:02:43]} 9. a3 {[%clk 0:02:37]}  a5 {[%clk 0:02:43]} 10. Bf4 {[%clk 0:02:34]}  O-O {[%clk 0:01:47]} 11. c4 {[%clk 0:02:29]}  dxc4 {[%clk 0:01:29]} 12. Bxc4 {[%clk 0:02:28]}  Nd5 {[%clk 0:01:21]} 13. Bg3 {[%clk 0:02:26]}  Nd4 {[%clk 0:01:11]} 14. Nxd4 {[%clk 0:02:23]}  Bxd4 {[%clk 0:01:12]} 15. Rd1 {[%clk 0:02:23]}  Qb6 {[%clk 0:01:11]} 16. Bxd5 {[%clk 0:02:10]}  exd5 {[%clk 0:01:10]} 17. Nc3 {[%clk 0:02:11]}  Bxc3 {[%clk 0:00:58]} 18. bxc3 {[%clk 0:02:10]}  Be6 {[%clk 0:00:58]} 19. Bf4 {[%clk 0:02:06]}  Rfc8 {[%clk 0:00:57]} 20. Be3 {[%clk 0:02:03]}  Qc6 {[%clk 0:00:55]} 21. Bd4 {[%clk 0:01:59]}  b5 {[%clk 0:00:55]} 22. Rab1 {[%clk 0:01:56]}  Rab8 {[%clk 0:00:54]} 23. Rb2 {[%clk 0:01:51]}  Bf5 {[%clk 0:00:53]} 24. g4 {[%clk 0:01:47]}  Bg6 {[%clk 0:00:52]} 25. h4 {[%clk 0:01:42]}  Qc4 {[%clk 0:00:39]} 26. Qe3 {[%clk 0:01:32]}  b4 {[%clk 0:00:34]} 27. axb4 {[%clk 0:01:23]}  axb4 {[%clk 0:00:32]} 28. cxb4 {[%clk 0:01:19]}  Rxb4 {[%clk 0:00:32]} 29. Rxb4 {[%clk 0:01:13]}  Qxb4 {[%clk 0:00:32]} 30. e6 {[%clk 0:01:13]}  Qe7 {[%clk 0:00:17]} 31. exf7+ {[%clk 0:01:04]}  Qxf7 {[%clk 0:00:17]} 32. f3 {[%clk 0:00:56]}  Re8 {[%clk 0:00:17]} 33. Qf2 {[%clk 0:00:48]}  Qe6 {[%clk 0:00:17]} 34. h5 {[%clk 0:00:42]}  Bh7 {[%clk 0:00:17]} 35. Ra1 {[%clk 0:00:38]}  Qd7 {[%clk 0:00:15]} 36. Ra7 {[%clk 0:00:34]}  Qe6 {[%clk 0:00:15]} 37. Rxg7+ {[%clk 0:00:32]}  Kf8 {[%clk 0:00:15]} 38. Rxh7 {[%clk 0:00:30]}  Rc8 {[%clk 0:00:11]} 39. Rh8+ {[%clk 0:00:29]}  Kf7 {[%clk 0:00:12]} 40. Rxc8 {[%clk 0:00:28]}  Qxc8 {[%clk 0:00:13]} 41. Qd2 {[%clk 0:00:28]}  Qc4 {[%clk 0:00:13]} 42. Qf4+ {[%clk 0:00:27]}  Ke8 {[%clk 0:00:13]} 43. Qe5+ {[%clk 0:00:26]}  Kd7 {[%clk 0:00:13]} 44. Qg7+ {[%clk 0:00:25]}  Kc6 {[%clk 0:00:14]} 45. Qxh6+ {[%clk 0:00:25]}  Kb5 {[%clk 0:00:14]} 46. Qd2 {[%clk 0:00:24]}  Ka6 {[%clk 0:00:11]} 47. Kg2 {[%clk 0:00:20]}  Kb7 {[%clk 0:00:10]} 48. h6 {[%clk 0:00:20]}  Qc7 {[%clk 0:00:10]} 49. Qb2+ {[%clk 0:00:20]}  Ka8 {[%clk 0:00:10]} 50. Qa3+ {[%clk 0:00:20]}  Kb7 {[%clk 0:00:10]} 51. Qb4+ {[%clk 0:00:21]}  Ka8 {[%clk 0:00:10]} 52. Qc5 {[%clk 0:00:20]}  Qg7 {[%clk 0:00:10]} 53. Bxg7 {[%clk 0:00:19]} 1-0


[Site "https://www.chess.com"]

[Event "Titled Tuesday Blitz April 26 Late 2022"]
[White "Remolar Gallen, Jose"]
[Black "Yanayt, Eugene"]
[WhiteFideId "2215187"]
[BlackFideId "2020165"]
[WhiteElo "2205"]
[BlackElo "2046"]
[Result "1/2-1/2"]
[Round "08"]
[TimeControl "180+1"]
[Date "2022.04.26"]
[WhiteClock "0:00:08"]
[BlackClock "0:00:04"]

1. d4 {[%clk 0:02:35]}  Nf6 {[%clk 0:02:58]} 2. c4 {[%clk 0:02:33]}  g6 {[%clk 0:02:58]} 3. Nc3 {[%clk 0:02:32]}  Bg7 {[%clk 0:02:58]} 4. e4 {[%clk 0:02:33]}  d6 {[%clk 0:02:58]} 5. Be2 {[%clk 0:02:33]}  O-O {[%clk 0:02:58]} 6. Be3 {[%clk 0:02:33]}  Na6 {[%clk 0:02:57]} 7. h4 {[%clk 0:02:33]}  h5 {[%clk 0:02:54]} 8. Nh3 {[%clk 0:02:27]}  e5 {[%clk 0:02:53]} 9. d5 {[%clk 0:02:24]}  Ng4 {[%clk 0:02:48]} 10. Bxg4 {[%clk 0:02:22]}  Bxg4 {[%clk 0:02:45]} 11. f3 {[%clk 0:02:23]}  Bd7 {[%clk 0:02:38]} 12. Qd2 {[%clk 0:02:18]}  c6 {[%clk 0:02:33]} 13. Ng5 {[%clk 0:02:11]}  cxd5 {[%clk 0:02:30]} 14. cxd5 {[%clk 0:02:11]}  b5 {[%clk 0:02:29]} 15. O-O {[%clk 0:02:07]}  b4 {[%clk 0:02:24]} 16. Ne2 {[%clk 0:01:52]}  Qa5 {[%clk 0:02:23]} 17. a3 {[%clk 0:01:50]}  Bb5 {[%clk 0:02:08]} 18. Rfc1 {[%clk 0:01:44]}  Rfb8 {[%clk 0:01:31]} 19. Kf2 {[%clk 0:01:21]}  Bf6 {[%clk 0:01:20]} 20. g4 {[%clk 0:01:12]}  hxg4 {[%clk 0:01:17]} 21. fxg4 {[%clk 0:01:07]}  Bd7 {[%clk 0:01:09]} 22. axb4 {[%clk 0:00:57]}  Qb5 {[%clk 0:01:09]} 23. Nc3 {[%clk 0:00:54]}  Qb7 {[%clk 0:00:59]} 24. b5 {[%clk 0:00:44]}  Nc7 {[%clk 0:00:47]} 25. b6 {[%clk 0:00:33]}  axb6 {[%clk 0:00:45]} 26. Kg3 {[%clk 0:00:30]}  b5 {[%clk 0:00:36]} 27. Rxa8 {[%clk 0:00:27]}  Rxa8 {[%clk 0:00:33]} 28. Rf1 {[%clk 0:00:27]}  Ne8 {[%clk 0:00:29]} 29. h5 {[%clk 0:00:21]}  gxh5 {[%clk 0:00:25]} 30. Qh2 {[%clk 0:00:18]}  Bxg4 {[%clk 0:00:20]} 31. Rf5 {[%clk 0:00:09]}  b4 {[%clk 0:00:17]} 32. Nd1 {[%clk 0:00:09]}  Bxd1 {[%clk 0:00:16]} 33. Nf3 {[%clk 0:00:05]}  Bxf3 {[%clk 0:00:14]} 34. Kxf3 {[%clk 0:00:05]}  Qe7 {[%clk 0:00:10]} 35. Qxh5 {[%clk 0:00:05]}  Ng7 {[%clk 0:00:10]} 36. Qg4 {[%clk 0:00:02]}  Kf8 {[%clk 0:00:10]} 37. Bh6 {[%clk 0:00:02]}  Ra2 {[%clk 0:00:08]} 38. Qg2 {[%clk 0:00:02]}  Ra1 {[%clk 0:00:06]} 39. Rh5 {[%clk 0:00:02]}  Rd1 {[%clk 0:00:04]} 40. Be3 {[%clk 0:00:02]}  Kg8 {[%clk 0:00:03]} 41. Rh6 {[%clk 0:00:02]}  Rd3 {[%clk 0:00:02]} 42. Ke2 {[%clk 0:00:02]}  Rxe3+ {[%clk 0:00:01]} 43. Kxe3 {[%clk 0:00:01]}  Bg5+ {[%clk 0:00:02]} 44. Kf3 {[%clk 0:00:01]}  Bxh6 {[%clk 0:00:02]} 45. Qh3 {[%clk 0:00:02]}  Qf6+ {[%clk 0:00:03]} 46. Ke2 {[%clk 0:00:02]}  Qf4 {[%clk 0:00:03]} 47. Qc8+ {[%clk 0:00:03]}  Kh7 {[%clk 0:00:03]} 48. Qd7 {[%clk 0:00:04]}  Qe3+ {[%clk 0:00:03]} 49. Kd1 {[%clk 0:00:05]}  Bf4 {[%clk 0:00:04]} 50. Kc2 {[%clk 0:00:05]}  Qd2+ {[%clk 0:00:04]} 51. Kb3 {[%clk 0:00:06]}  Qd3+ {[%clk 0:00:05]} 52. Kxb4 {[%clk 0:00:06]}  Qxe4+ {[%clk 0:00:05]} 53. Kb5 {[%clk 0:00:06]}  Qxd5+ {[%clk 0:00:06]} 54. Kb6 {[%clk 0:00:07]}  Qc5+ {[%clk 0:00:06]} 55. Kb7 {[%clk 0:00:07]}  Qb4+ {[%clk 0:00:07]} 56. Kc7 {[%clk 0:00:07]}  Qc5+ {[%clk 0:00:07]} 57. Kd8 {[%clk 0:00:07]}  Ne6+ {[%clk 0:00:07]} 58. Ke7 {[%clk 0:00:07]}  Bg5+ {[%clk 0:00:08]} 59. Kxf7 {[%clk 0:00:08]}  Qf2+ {[%clk 0:00:07]} 60. Kxe6+ {[%clk 0:00:08]}  Kg6 {[%clk 0:00:05]} 61. Qe8+ {[%clk 0:00:07]}  Kh6 {[%clk 0:00:05]} 62. Qh8+ {[%clk 0:00:07]}  Kg6 {[%clk 0:00:05]} 63. Qg8+ {[%clk 0:00:06]}  Kh5 {[%clk 0:00:06]} 64. Qh7+ {[%clk 0:00:07]}  Kg4 {[%clk 0:00:05]} 65. Kxd6 {[%clk 0:00:06]}  Qd4+ {[%clk 0:00:05]} 66. Ke6 {[%clk 0:00:07]}  Qxb2 {[%clk 0:00:05]} 67. Qf5+ {[%clk 0:00:07]}  Kh5 {[%clk 0:00:05]} 68. Qxe5 {[%clk 0:00:07]}  Qb6+ {[%clk 0:00:04]} 69. Kf5 {[%clk 0:00:07]}  Qf2+ {[%clk 0:00:04]} 70. Ke6 {[%clk 0:00:07]}  Qb6+ {[%clk 0:00:04]} 71. Kd5 {[%clk 0:00:08]}  Qb5+ {[%clk 0:00:04]} 72. Ke4 {[%clk 0:00:08]}  Qc4+ {[%clk 0:00:04]} 73. Qd4 {[%clk 0:00:09]}  Qe2+ {[%clk 0:00:04]} 74. Kd5 {[%clk 0:00:09]}  Qf3+ {[%clk 0:00:04]} 75. Kc5 {[%clk 0:00:09]}  Qf5+ {[%clk 0:00:04]} 76. Kc4 {[%clk 0:00:09]}  Qe6+ {[%clk 0:00:04]} 77. Kd3 {[%clk 0:00:09]}  Qf5+ {[%clk 0:00:04]} 78. Qe4 {[%clk 0:00:09]}  Qf1+ {[%clk 0:00:04]} 79. Qe2+ {[%clk 0:00:07]}  Qxe2+ {[%clk 0:00:04]} 80. Kxe2 {[%clk 0:00:08]} 1/2-1/2


[Site "https://www.chess.com"]

[Event "Titled Tuesday Blitz April 26 Late 2022"]
[White "Romanchuk, Viktor"]
[Black "Lin, Dachey"]
[WhiteFideId "14109271"]
[BlackFideId "2029650"]
[WhiteElo "2242"]
[BlackElo "2313"]
[Result "0-1"]
[Round "08"]
[TimeControl "180+1"]
[Date "2022.04.26"]
[WhiteClock "0:00:19"]
[BlackClock "0:01:23"]

1. d4 {[%clk 0:03:00]}  g6 {[%clk 0:02:59]} 2. c4 {[%clk 0:03:00]}  Bg7 {[%clk 0:03:00]} 3. Nf3 {[%clk 0:03:00]}  f5 {[%clk 0:03:00]} 4. g3 {[%clk 0:02:59]}  Nf6 {[%clk 0:03:00]} 5. Bg2 {[%clk 0:03:00]}  O-O {[%clk 0:03:01]} 6. b3 {[%clk 0:03:00]}  d6 {[%clk 0:03:01]} 7. Bb2 {[%clk 0:03:01]}  Nc6 {[%clk 0:02:57]} 8. d5 {[%clk 0:02:58]}  Nb8 {[%clk 0:02:51]} 9. O-O {[%clk 0:02:55]}  a5 {[%clk 0:02:49]} 10. Nc3 {[%clk 0:02:49]}  Ne4 {[%clk 0:02:48]} 11. Qc2 {[%clk 0:02:48]}  Na6 {[%clk 0:02:43]} 12. Nxe4 {[%clk 0:02:43]}  Nb4 {[%clk 0:02:43]} 13. Qc1 {[%clk 0:02:38]}  fxe4 {[%clk 0:02:42]} 14. Bxg7 {[%clk 0:02:35]}  exf3 {[%clk 0:02:42]} 15. Bxf8 {[%clk 0:02:12]}  fxg2 {[%clk 0:02:41]} 16. Kxg2 {[%clk 0:02:09]}  Qxf8 {[%clk 0:02:41]} 17. a3 {[%clk 0:02:05]}  Na6 {[%clk 0:02:41]} 18. e4 {[%clk 0:02:04]}  Nc5 {[%clk 0:02:41]} 19. Qc2 {[%clk 0:02:04]}  a4 {[%clk 0:02:29]} 20. b4 {[%clk 0:02:02]}  Nb3 {[%clk 0:02:29]} 21. Rad1 {[%clk 0:02:01]}  e5 {[%clk 0:02:29]} 22. dxe6 {[%clk 0:01:57]}  Bxe6 {[%clk 0:02:29]} 23. f3 {[%clk 0:01:42]}  Qh6 {[%clk 0:02:27]} 24. Rf2 {[%clk 0:01:35]}  Rf8 {[%clk 0:02:25]} 25. c5 {[%clk 0:01:32]}  dxc5 {[%clk 0:02:21]} 26. bxc5 {[%clk 0:01:32]}  Qe3 {[%clk 0:02:21]} 27. c6 {[%clk 0:01:29]}  b5 {[%clk 0:02:19]} 28. Rd3 {[%clk 0:01:23]}  Qe1 {[%clk 0:02:15]} 29. Qb2 {[%clk 0:01:14]}  Nc5 {[%clk 0:01:54]} 30. Rdd2 {[%clk 0:01:06]}  Qe3 {[%clk 0:01:35]} 31. Qe5 {[%clk 0:01:03]}  Bc4 {[%clk 0:01:27]} 32. Qxc7 {[%clk 0:00:47]}  Nd3 {[%clk 0:01:27]} 33. Qd7 {[%clk 0:00:20]}  Ne1+ {[%clk 0:01:24]} 34. Kh3 {[%clk 0:00:19]}  Qh6+ {[%clk 0:01:22]} 35. Kg4 {[%clk 0:00:19]}  Qh5# {[%clk 0:01:23]} 0-1


[Site "https://www.chess.com"]

[Event "Titled Tuesday Blitz April 26 Late 2022"]
[White "Rosen, Eric"]
[Black "Alinasab, Mobina"]
[WhiteFideId "2032562"]
[BlackFideId "12528897"]
[WhiteElo "2362"]
[BlackElo "2031"]
[Result "1-0"]
[Round "08"]
[TimeControl "180+1"]
[Date "2022.04.26"]
[WhiteClock "0:00:36"]
[BlackClock "0:00:37"]

1. e4 {[%clk 0:03:00]}  c5 {[%clk 0:02:59]} 2. Nc3 {[%clk 0:03:00]}  d6 {[%clk 0:02:59]} 3. d4 {[%clk 0:03:00]}  cxd4 {[%clk 0:03:00]} 4. Qxd4 {[%clk 0:03:01]}  Nc6 {[%clk 0:02:56]} 5. Qd2 {[%clk 0:03:01]}  g6 {[%clk 0:02:56]} 6. b3 {[%clk 0:03:01]}  Bg7 {[%clk 0:02:56]} 7. Bb2 {[%clk 0:03:02]}  Nf6 {[%clk 0:02:55]} 8. O-O-O {[%clk 0:03:01]}  O-O {[%clk 0:02:56]} 9. f3 {[%clk 0:02:57]}  Qa5 {[%clk 0:02:54]} 10. Kb1 {[%clk 0:02:56]}  Be6 {[%clk 0:02:51]} 11. g4 {[%clk 0:02:49]}  Rfc8 {[%clk 0:02:37]} 12. Nge2 {[%clk 0:02:40]}  Nd7 {[%clk 0:02:01]} 13. h4 {[%clk 0:02:35]}  Nb4 {[%clk 0:01:57]} 14. a3 {[%clk 0:02:25]}  Nc6 {[%clk 0:01:53]} 15. h5 {[%clk 0:02:15]}  b5 {[%clk 0:01:52]} 16. hxg6 {[%clk 0:01:52]}  fxg6 {[%clk 0:01:48]} 17. Nxb5 {[%clk 0:01:20]}  Qxd2 {[%clk 0:01:23]} 18. Rxd2 {[%clk 0:01:19]}  Bxb2 {[%clk 0:01:24]} 19. Kxb2 {[%clk 0:01:18]}  a6 {[%clk 0:01:23]} 20. Nbd4 {[%clk 0:01:18]}  Nxd4 {[%clk 0:01:24]} 21. Nxd4 {[%clk 0:01:19]}  Bf7 {[%clk 0:01:24]} 22. Rdh2 {[%clk 0:01:14]}  e5 {[%clk 0:00:50]} 23. Ne2 {[%clk 0:01:06]}  Nf8 {[%clk 0:00:49]} 24. Nc3 {[%clk 0:01:04]}  h6 {[%clk 0:00:46]} 25. Rxh6 {[%clk 0:01:01]}  Kg7 {[%clk 0:00:46]} 26. R6h2 {[%clk 0:00:58]}  Ne6 {[%clk 0:00:43]} 27. Rh7+ {[%clk 0:00:54]}  Kf8 {[%clk 0:00:42]} 28. Rh8+ {[%clk 0:00:54]}  Kg7 {[%clk 0:00:41]} 29. R1h7+ {[%clk 0:00:45]}  Kf6 {[%clk 0:00:40]} 30. Nd5+ {[%clk 0:00:35]}  Kg5 {[%clk 0:00:37]} 31. Rxc8 {[%clk 0:00:36]} 1-0


[Site "https://www.chess.com"]

[Event "Titled Tuesday Blitz April 26 Late 2022"]
[White "Salimova, Nurgyul"]
[Black "Vovk, Orest"]
[WhiteFideId "2915138"]
[BlackFideId "14113490"]
[WhiteElo "2185"]
[BlackElo "2203"]
[Result "1-0"]
[Round "08"]
[TimeControl "180+1"]
[Date "2022.04.26"]
[WhiteClock "0:00:05"]
[BlackClock "0:00:07"]

1. d4 {[%clk 0:03:00]}  e5 {[%clk 0:02:54]} 2. dxe5 {[%clk 0:02:57]}  Nc6 {[%clk 0:02:54]} 3. Nf3 {[%clk 0:02:57]}  Qe7 {[%clk 0:02:54]} 4. Bg5 {[%clk 0:02:31]}  Qb4+ {[%clk 0:02:53]} 5. Nc3 {[%clk 0:02:28]}  Qxb2 {[%clk 0:02:53]} 6. Bd2 {[%clk 0:02:27]}  Bb4 {[%clk 0:02:53]} 7. Rb1 {[%clk 0:02:13]}  Qxc3 {[%clk 0:02:52]} 8. Bxc3 {[%clk 0:01:57]}  Bxc3+ {[%clk 0:02:53]} 9. Nd2 {[%clk 0:01:57]}  Nxe5 {[%clk 0:02:54]} 10. e3 {[%clk 0:01:50]}  Nf6 {[%clk 0:02:54]} 11. Rb3 {[%clk 0:01:43]}  Ba5 {[%clk 0:02:54]} 12. Rb5 {[%clk 0:01:18]}  Nc6 {[%clk 0:02:28]} 13. Bd3 {[%clk 0:01:17]}  O-O {[%clk 0:02:24]} 14. O-O {[%clk 0:01:16]}  d5 {[%clk 0:02:24]} 15. c4 {[%clk 0:01:09]}  a6 {[%clk 0:02:20]} 16. Rb1 {[%clk 0:01:04]}  Ne5 {[%clk 0:02:11]} 17. Be2 {[%clk 0:00:50]}  Bxd2 {[%clk 0:02:01]} 18. Qxd2 {[%clk 0:00:50]}  Nxc4 {[%clk 0:02:01]} 19. Qd4 {[%clk 0:00:44]}  b5 {[%clk 0:01:58]} 20. a4 {[%clk 0:00:41]}  c6 {[%clk 0:01:56]} 21. Rfd1 {[%clk 0:00:34]}  Bf5 {[%clk 0:01:52]} 22. Rbc1 {[%clk 0:00:32]}  Rfe8 {[%clk 0:01:46]} 23. Qc5 {[%clk 0:00:31]}  Bd7 {[%clk 0:01:42]} 24. Bd3 {[%clk 0:00:26]}  Ne4 {[%clk 0:01:32]} 25. Bxe4 {[%clk 0:00:23]}  Rxe4 {[%clk 0:01:33]} 26. Rd4 {[%clk 0:00:21]}  Re6 {[%clk 0:01:25]} 27. e4 {[%clk 0:00:15]}  Rae8 {[%clk 0:01:14]} 28. f3 {[%clk 0:00:12]}  Ne3 {[%clk 0:00:48]} 29. axb5 {[%clk 0:00:10]}  axb5 {[%clk 0:00:40]} 30. Rd3 {[%clk 0:00:09]}  Nc4 {[%clk 0:00:30]} 31. exd5 {[%clk 0:00:10]}  Re5 {[%clk 0:00:22]} 32. h3 {[%clk 0:00:06]}  Bf5 {[%clk 0:00:20]} 33. Rd4 {[%clk 0:00:04]}  Bd7 {[%clk 0:00:17]} 34. Qa7 {[%clk 0:00:04]}  R5e7 {[%clk 0:00:10]} 35. d6 {[%clk 0:00:04]}  Re1+ {[%clk 0:00:03]} 36. Rxe1 {[%clk 0:00:04]}  Rxe1+ {[%clk 0:00:03]} 37. Kf2 {[%clk 0:00:04]}  Re8 {[%clk 0:00:04]} 38. Qxd7 {[%clk 0:00:04]}  Rf8 {[%clk 0:00:05]} 39. Qxc6 {[%clk 0:00:04]}  Ne5 {[%clk 0:00:06]} 40. Qd5 {[%clk 0:00:05]}  Nc4 {[%clk 0:00:06]} 41. Qxb5 {[%clk 0:00:05]}  Nb6 {[%clk 0:00:07]} 42. Qxb6 {[%clk 0:00:05]} 1-0


[Site "https://www.chess.com"]